bitfinex/quotes_SOLUSD_20251207
["timestamp","ask_amount","ask_price","bid_price","bid_amount"]
[1765075937081,0.72,133.28,133.27,3.02680145]
[1765075939396,0.72,133.28,133.26,7.50405605]
[1765075939597,0.72,133.28,133.27,3.02680145]
[1765075944627,0.72,133.28,133.26,7.50405605]
[1765075944789,0.72,133.28,133.27,3.02680145]
[1765075947399,0.72,133.28,133.26,10.5308575]
[1765075949911,0.72,133.28,133.27,3.02680145]
[1765075953922,0.1,133.3,133.27,3.02680145]
[1765075954123,0.1,133.3,133.28,3.02680145]
[1765075954427,0.66,133.29,133.28,3.02680145]
[1765075955731,0.66,133.29,133.27,3.02680145]
[1765075957620,0.66,133.29,133.27,3.70680145]
[1765075957823,0.66,133.29,133.27,3.02680145]
[1765075959904,8.16250371,133.29,133.26,3.02680145]
[1765075960099,8.24,133.28,133.26,3.02680145]
[1765075960305,8.9,133.28,133.26,3.02680145]
[1765075960519,0.66,133.27,133.26,3.02680145]
[1765075960719,8.24,133.28,133.26,11.2108136]
[1765075960917,8.24,133.28,133.27,3.70680145]
[1765075961227,8.24,133.28,133.27,3.02680145]
[1765075968224,8.9,133.28,133.27,3.02680145]
[1765075968430,8.9,133.28,133.27,4.72974724]
[1765075968929,8.24,133.28,133.27,4.72974724]
[1765075970731,0.1,133.3,133.27,12.94331143]
[1765075971035,0.1,133.3,133.29,4.72974724]
[1765075971536,0.78,133.3,133.29,4.72974724]
[1765075972232,0.1,133.3,133.29,4.72974724]
[1765075973031,0.82,133.3,133.29,4.72974724]
[1765075973828,8.32191194,133.3,133.27,4.72974724]
[1765075974224,0.72,133.29,133.27,4.72974724]
[1765075974416,8.24,133.28,133.27,4.72974724]
[1765075974818,8.96,133.28,133.27,4.72974724]
[1765075977713,8.24,133.28,133.27,4.72974724]
[1765075978322,8.24,133.28,133.27,12.23331143]
[1765075978627,8.24,133.28,133.27,12.94331143]
[1765075978827,8.24,133.28,133.27,12.23331143]
[1765075982115,0.72,133.29,133.27,12.23331143]
[1765075982324,0.72,133.29,133.28,4.72974724]
[1765075989348,0.72,133.29,133.27,7.50356419]
[1765075989637,0.72,133.29,133.28,4.72974724]
[1765075989942,0.72,133.29,133.27,4.72974724]
[1765075992846,0.72,133.29,133.26,8.21392514]
[1765075993047,0.72,133.29,133.27,4.72974724]
[1765075997630,0.72,133.29,133.27,5.43974724]
[1765075998242,0.72,133.29,133.27,4.72974724]
[1765076010257,8.24,133.28,133.27,4.72974724]
[1765076010758,8.89,133.28,133.27,4.72974724]
[1765076014059,8.24,133.28,133.27,4.72974724]
[1765076014264,8.89,133.28,133.27,4.72974724]
[1765076016264,8.89,133.28,133.26,8.20397848]
[1765076016456,8.89,133.28,133.27,4.72974724]
[1765076023658,8.89,133.28,133.26,4.72974724]
[1765076023969,0.65,133.27,133.26,4.72974724]
[1765076026477,0.65,133.27,133.25,21.03861124]
[1765076030476,0.65,133.27,133.26,3.02788412]
[1765076033655,0.65,133.27,133.25,19.33674812]
[1765076036080,0.65,133.27,133.23,8.24]
[1765076036288,0.65,133.27,133.25,3.02788412]
[1765076036461,0.65,133.27,133.26,3.02788412]
[1765076038788,0.65,133.27,133.24,8.22508181]
[1765076038965,0.65,133.27,133.25,3.02788412]
[1765076039166,0.65,133.27,133.24,11.25296593]
[1765076040075,11.18152577,133.27,133.22,3.74788412]
[1765076040387,18.76513104,133.26,133.22,3.74788412]
[1765076040560,8.24,133.25,133.22,11.25413157]
[1765076040757,8.91,133.25,133.22,11.25413157]
[1765076042175,0.67,133.24,133.22,10.53413157]
[1765076042888,0.67,133.24,133.21,20.00674812]
[1765076043188,8.91,133.25,133.22,0.67]
[1765076043693,8.24,133.25,133.24,3.02788412]
[1765076044196,8.24,133.25,133.24,3.69788412]
[1765076044366,0.67,133.29,133.24,28.81669304]
[1765076044690,8.24,133.28,133.26,3.02788412]
[1765076044991,8.24,133.28,133.26,10.53197542]
[1765076045196,0.1,133.3,133.27,12.50782904]
[1765076045379,8.34,133.3,133.29,3.02788412]
[1765076045880,8.34,133.3,133.29,3.69788412]
[1765076046087,8.34,133.3,133.29,3.02788412]
[1765076048566,0.1,133.3,133.29,3.02788412]
[1765076054005,0.1,133.3,133.29,11.20032241]
[1765076055205,0.1,133.3,133.29,3.02788412]
[1765076055508,0.77,133.3,133.27,8.24]
[1765076055713,3.79788412,133.3,133.27,8.24]
[1765076055900,3.79788412,133.3,133.25,3.02788412]
[1765076056089,8.91,133.29,133.25,3.02788412]
[1765076056290,8.24,133.28,133.25,3.02788412]
[1765076056490,8.91,133.28,133.25,3.02788412]
[1765076056796,0.67,133.27,133.25,3.02788412]
[1765076059183,0.67,133.27,133.26,3.02788412]
[1765076059583,8.91,133.28,133.26,3.02788412]
[1765076059806,0.67,133.27,133.26,3.02788412]
[1765076062007,8.24,133.28,133.26,3.02788412]
[1765076062196,8.94,133.28,133.26,3.02788412]
[1765076063908,8.24,133.28,133.27,3.02788412]
[1765076064209,8.24,133.28,133.27,3.70788412]
[1765076064584,8.24,133.28,133.27,3.02788412]
[1765076069226,8.24,133.28,133.27,11.21144831]
[1765076070514,0.1,133.3,133.27,27.52031231]
[1765076070721,0.1,133.3,133.29,3.02788412]
[1765076074629,0.1,133.3,133.29,3.70788412]
[1765076083323,0.1,133.3,133.29,27.51918641]
[1765076087310,0.1,133.3,133.29,33.30124721]
[1765076087834,0.1,133.3,133.29,36.32913133]
[1765076090321,0.1,133.3,133.29,33.30124721]
[1765076090619,0.1,133.3,133.29,38.0284074]
[1765076090836,0.1,133.3,133.29,29.21846248]
[1765076092419,0.76,133.3,133.29,16.308864]
[1765076094440,0.1,133.3,133.29,24.52130229]
[1765076094827,0.76,133.3,133.29,16.308864]
[1765076095140,0.76,133.3,133.29,21.03602419]
[1765076095641,0.76,133.3,133.29,21.74602419]
[1765076095642,0.1,133.3,133.29,21.74602419]
[1765076095841,0.76,133.3,133.29,21.03602419]
[1765076096044,0.76,133.3,133.29,16.308864]
[1765076097477,0.1,133.3,133.29,21.03602419]
[1765076099347,0.1,133.3,133.29,28.53846248]
[1765076101150,0.79,133.3,133.29,28.53846248]
[1765076102250,0.1,133.3,133.29,28.53846248]
[1765076102449,0.1,133.3,133.29,29.23846248]
[1765076102618,0.1,133.3,133.29,28.53846248]
[1765076104744,0.79,133.3,133.29,21.03602419]
[1765076105840,9.03,133.3,133.28,4.72716019]
[1765076106043,16.53190255,133.3,133.28,4.72716019]
[1765076106353,0.69,133.29,133.28,4.72716019]
[1765076107237,0.69,133.29,133.28,12.23016139]
[1765076108560,0.69,133.29,133.28,4.72716019]
[1765076121767,0.69,133.29,133.27,7.5032606]
[1765076121768,0.69,133.29,133.26,16.308864]
[1765076121942,0.69,133.29,133.26,4.72716019]
[1765076122261,0.69,133.29,133.25,4.72716019]
[1765076123473,0.69,133.29,133.24,4.72716019]
[1765076123474,12.91986973,133.29,133.24,4.72716019]
[1765076123671,26.94880527,133.29,133.25,4.72716019]
[1765076123874,0.68,133.28,133.25,4.72716019]
[1765076124094,8.24,133.27,133.25,4.72716019]
[1765076124579,0.68,133.26,133.25,4.72716019]
[1765076125260,8.92,133.27,133.25,4.72716019]
[1765076125462,8.92,133.27,133.26,4.72716019]
[1765076130356,8.92,133.27,133.24,8.19520713]
[1765076130556,8.92,133.27,133.26,4.72716019]
[1765076137984,8.24,133.27,133.26,5.41716019]
[1765076138287,8.24,133.27,133.26,4.72716019]
[1765076138586,8.92,133.27,133.26,4.72716019]
[1765076140889,0.68,133.27,133.26,4.72716019]
[1765076141186,8.92,133.27,133.26,4.72716019]
[1765076144087,8.92,133.27,133.24,8.19510489]
[1765076144283,8.92,133.27,133.25,4.72716019]
[1765076144484,0.68,133.26,133.25,4.72716019]
[1765076144673,8.92,133.27,133.25,4.72716019]
[1765076145676,0.68,133.26,133.25,4.72716019]
[1765076148091,8.92,133.27,133.25,5.41716019]
[1765076148303,8.92,133.27,133.26,4.72716019]
[1765076150397,8.24,133.27,133.26,4.72716019]
[1765076151289,8.24,133.27,133.26,5.40716019]
[1765076151473,8.24,133.27,133.26,12.91128745]
[1765076152469,8.24,133.27,133.26,11.21146099]
[1765076154093,0.1,133.3,133.26,11.21146099]
[1765076154270,8.34,133.3,133.29,3.02733373]
[1765076156281,9.0,133.3,133.29,3.02733373]
[1765076157896,8.34,133.3,133.29,3.02733373]
[1765076158197,8.34,133.3,133.29,3.74733373]
[1765076159297,8.34,133.3,133.29,3.02733373]
[1765076159598,9.0,133.3,133.29,3.02733373]
[1765076159789,16.50187546,133.3,133.28,3.02733373]
[1765076159992,0.66,133.29,133.28,3.02733373]
[1765076161776,16.50204083,133.3,133.28,3.02733373]
[1765076162077,8.34,133.3,133.29,3.02733373]
[1765076162282,8.34,133.3,133.29,3.74733373]
[1765076164801,16.50187546,133.3,133.28,3.02733373]
[1765076165099,0.66,133.29,133.28,3.02733373]
[1765076168417,15.84187546,133.3,133.28,3.02733373]
[1765076168705,8.34,133.3,133.29,3.02733373]
[1765076169684,9.0,133.3,133.29,3.02733373]
[1765076169873,8.34,133.3,133.29,3.02733373]
[1765076170075,8.34,133.3,133.29,3.74733373]
[1765076171202,8.34,133.3,133.29,3.02733373]
[1765076173602,8.34,133.3,133.29,11.24977202]
[1765076176607,9.0,133.3,133.29,3.02733373]
[1765076176809,8.34,133.3,133.29,3.02733373]
[1765076180910,8.34,133.3,133.29,10.52977202]
[1765076186612,8.34,133.3,133.29,11.21977202]
[1765076187017,8.34,133.3,133.29,10.52977202]
[1765076188418,9.04,133.3,133.29,3.02733373]
[1765076190019,9.04,133.3,133.29,10.52977202]
[1765076190618,9.04,133.3,133.28,7.50294782]
[1765076190919,9.04,133.3,133.28,3.02733373]
[1765076191114,9.04,133.3,133.28,3.52733373]
[1765076191816,9.04,133.3,133.29,3.02733373]
[1765076192018,8.34,133.3,133.29,3.71733373]
[1765076192320,8.34,133.3,133.29,10.52977202]
[1765076192527,8.34,133.3,133.29,11.21977202]
[1765076198324,9.04,133.3,133.29,10.52977202]
[1765076198524,8.34,133.3,133.29,10.52977202]
[1765076202731,8.34,133.3,133.29,11.21977202]
[1765076204904,8.34,133.3,133.29,10.52977202]
[1765076205233,8.34,133.3,133.29,11.21977202]
[1765076205927,8.34,133.3,133.29,10.52977202]
[1765076206426,8.34,133.3,133.29,8.19243829]
[1765076206732,8.34,133.3,133.29,20.02971694]
[1765076208927,0.1,133.3,133.29,20.02971694]
[1765076209825,0.1,133.3,133.29,19.33971694]
[1765076210057,0.8,133.3,133.29,3.02733373]
[1765076210209,0.1,133.3,133.29,3.02733373]
[1765076210931,0.82,133.3,133.29,3.02733373]
[1765076211633,0.82,133.3,133.29,10.52977202]
[1765076212330,0.82,133.3,133.29,7.50243829]
[1765076212633,0.82,133.3,133.29,12.23078781]
[1765076220340,0.82,133.3,133.29,7.50243829]
[1765076220528,0.82,133.3,133.28,12.23119813]
[1765076220931,0.82,133.3,133.28,12.90119813]
[1765076221256,0.82,133.3,133.29,4.72834952]
[1765076223170,0.1,133.3,133.29,12.23078781]
[1765076223867,0.1,133.3,133.29,38.02959673]
[1765076224043,0.1,133.3,133.29,56.77821089]
[1765076224966,0.1,133.3,133.29,52.04986137]
[1765076225139,0.1,133.3,133.29,56.77821089]
[1765076225343,0.1,133.3,133.29,37.34959673]
[1765076225850,0.1,133.3,133.29,38.52959673]
[1765076230071,0.1,133.3,133.29,46.76959673]
[1765076235350,0.1,133.3,133.29,38.52959673]
[1765076236467,0.1,133.3,133.29,37.84959673]
[1765076237262,0.1,133.3,133.29,38.52959673]
[1765076239270,0.1,133.3,133.29,22.22073273]
[1765076239662,0.1,133.3,133.29,37.95999617]
[1765076248671,0.1,133.3,133.29,22.22073273]
[1765076249574,0.82,133.3,133.29,37.84959673]
[1765076249876,0.1,133.3,133.29,37.84959673]
[1765076250286,0.1,133.3,133.29,38.51959673]
[1765076251891,0.1,133.3,133.29,37.84959673]
[1765076252974,0.1,133.3,133.29,38.51959673]
[1765076255176,0.1,133.3,133.29,22.21073273]
[1765076255501,0.1,133.3,133.29,30.45073273]
[1765076256595,0.72,133.34,133.32,16.308864]
[1765076256799,8.96,133.35,133.32,16.308864]
[1765076256998,8.96,133.35,133.34,4.72834952]
[1765076258004,0.72,133.35,133.34,4.72834952]
[1765076260473,0.72,133.35,133.32,23.80941954]
[1765076260687,0.72,133.35,133.33,4.72834952]
[1765076260999,0.72,133.35,133.34,4.72834952]
[1765076262290,0.72,133.35,133.33,4.72834952]
[1765076264903,0.72,133.35,133.33,12.22852661]
[1765076265704,0.72,133.35,133.34,4.72834952]
[1765076266002,0.72,133.35,133.34,12.22797453]
[1765076267188,8.24,133.38,133.34,12.22797453]
[1765076267403,0.72,133.36,133.35,4.72834952]
[1765076269603,0.72,133.39,133.36,16.308864]
[1765076269904,0.72,133.39,133.38,4.72834952]
[1765076271415,0.1,133.4,133.38,13.53829444]
[1765076271598,0.82,133.4,133.39,4.72834952]
[1765076272811,0.82,133.4,133.38,16.30708445]
[1765076273007,0.82,133.4,133.39,4.72834952]
[1765076274501,0.82,133.4,133.39,3.02211239]
[1765076279018,0.1,133.4,133.39,3.02211239]
[1765076279520,0.79,133.4,133.39,3.02211239]
[1765076280816,0.1,133.4,133.39,19.32887116]
[1765076281322,0.79,133.4,133.39,19.33097639]
[1765076283022,0.79,133.4,133.39,3.02211239]
[1765076283927,0.79,133.4,133.39,10.51892624]
[1765076284109,0.79,133.4,133.39,36.35773516]
[1765076284110,0.1,133.4,133.39,36.35773516]
[1765076284825,0.1,133.4,133.39,35.63773516]
[1765076285016,0.1,133.4,133.39,36.35773516]
[1765076285620,0.1,133.4,133.39,36.85773516]
[1765076288499,1e-08,133.4,133.39,20.54887116]
[1765076288799,0.1,133.41,133.4,16.308864]
[1765076289108,0.1,133.41,133.4,20.05097639]
[1765076289305,0.1,133.41,133.4,30.56934065]
[1765076289709,0.1,133.41,133.4,27.54722826]
[1765076290328,0.1,133.42,133.41,8.80994492]
[1765076290505,0.1,133.42,133.41,15.5741697]
[1765076291299,0.1,133.43,133.41,32.13619684]
[1765076291504,0.1,133.43,133.42,15.83056195]
[1765076293337,0.1,133.43,133.42,32.13563503]
[1765076294418,0.1,133.44,133.43,25.11880892]
[1765076294715,0.1,133.44,133.43,28.86092131]
[1765076295430,0.1,133.44,133.43,36.35548774]
[1765076297103,0.1,133.44,133.43,35.63548774]
[1765076297310,0.79,133.44,133.43,35.63548774]
[1765076300030,0.79,133.44,133.43,32.61337535]
[1765076300221,0.79,133.44,133.43,35.63548774]
[1765076300422,0.1,133.44,133.43,35.63548774]
[1765076301724,0.1,133.44,133.43,36.30548774]
[1765076301921,3.58852795,133.5,133.47,8.80994492]
[1765076302127,3.58852795,133.5,133.48,11.83205731]
[1765076302429,4.24852795,133.5,133.48,11.83205731]
[1765076302622,0.76,133.49,133.48,11.83205731]
[1765076303326,0.1,133.49,133.48,19.32381637]
[1765076303520,0.76,133.49,133.48,19.32381637]
[1765076304115,0.76,133.49,133.48,3.02211239]
[1765076305036,0.76,133.49,133.47,3.02211239]
[1765076305335,8.25155498,133.49,133.45,3.02211239]
[1765076305829,0.66,133.48,133.44,16.308864]
[1765076306036,0.66,133.48,133.45,3.02211239]
[1765076308230,0.66,133.48,133.44,16.308864]
[1765076308231,8.1517718,133.48,133.44,16.308864]
[1765076308412,11.17388419,133.48,133.44,16.308864]
[1765076308743,0.66,133.47,133.43,3.02211239]
[1765076308934,0.66,133.47,133.42,3.02211239]
[1765076309123,3.68211239,133.47,133.42,3.02211239]
[1765076309509,0.66,133.46,133.42,10.51720215]
[1765076310825,16.39308621,133.46,133.42,3.02211239]
[1765076311136,19.4151986,133.46,133.41,23.80444052]
[1765076311329,0.66,133.45,133.41,23.80444052]
[1765076312217,0.66,133.45,133.41,26.82655291]
[1765076313446,0.66,133.45,133.41,23.80444052]
[1765076313618,0.66,133.45,133.38,8.80994492]
[1765076313619,3.02211239,133.43,133.38,7.49730014]
[1765076313822,8.24,133.42,133.38,10.51941253]
[1765076314023,8.24,133.42,133.4,3.02211239]
[1765076314332,0.66,133.41,133.4,3.02211239]
[1765076314945,8.24,133.42,133.4,3.02211239]
[1765076315154,8.9,133.42,133.4,3.02211239]
[1765076315443,8.24,133.42,133.4,3.02211239]
[1765076315640,0.66,133.41,133.4,3.02211239]
[1765076317446,0.66,133.41,133.39,3.02211239]
[1765076319822,0.66,133.41,133.39,19.33097639]
[1765076320316,0.66,133.41,133.4,3.02211239]
[1765076320520,18.73363893,133.45,133.4,3.69211239]
[1765076320521,0.66,133.45,133.4,3.69211239]
[1765076320739,0.66,133.44,133.43,3.02211239]
[1765076321138,0.66,133.44,133.42,3.02211239]
[1765076321546,0.66,133.44,133.43,3.02211239]
[1765076321727,0.66,133.44,133.4,19.33097639]
[1765076321921,0.66,133.44,133.4,16.308864]
[1765076322257,8.15402732,133.44,133.4,16.308864]
[1765076322744,0.66,133.43,133.4,23.80509807]
[1765076323334,0.66,133.43,133.4,26.82721046]
[1765076324348,0.66,133.43,133.41,3.02211239]
[1765076324650,0.66,133.44,133.42,3.02211239]
[1765076325752,0.66,133.44,133.41,3.02211239]
[1765076327648,0.66,133.44,133.41,10.51759329]
[1765076327838,0.66,133.44,133.41,26.82645729]
[1765076329839,0.66,133.44,133.41,27.49645729]
[1765076331129,15.73296563,133.46,133.42,3.68211239]
[1765076331130,0.68,133.45,133.42,3.68211239]
[1765076331331,0.68,133.45,133.42,3.02211239]
[1765076331857,0.68,133.45,133.42,10.51702548]
[1765076332754,0.68,133.45,133.42,7.49491309]
[1765076333831,8.24,133.45,133.43,8.15435689]
[1765076334157,8.92,133.47,133.44,3.02211239]
[1765076334351,8.24,133.47,133.45,4.71761609]
[1765076334544,0.68,133.46,133.45,4.71761609]
[1765076337059,8.92,133.47,133.45,4.71761609]
[1765076337463,0.68,133.46,133.43,16.308864]
[1765076337641,0.68,133.46,133.43,21.02648009]
[1765076338036,0.68,133.46,133.44,4.71761609]
[1765076338962,0.68,133.46,133.43,28.52101623]
[1765076339640,0.68,133.46,133.43,21.02648009]
[1765076339860,0.68,133.46,133.43,28.52103809]
[1765076340062,0.68,133.46,133.43,21.02648009]
[1765076340448,0.68,133.46,133.43,16.308864]
[1765076340642,0.68,133.46,133.43,21.02648009]
[1765076340861,8.17289881,133.46,133.43,16.308864]
[1765076341161,8.17289881,133.46,133.43,21.02648009]
[1765076341362,0.68,133.45,133.44,16.308864]
[1765076345439,0.68,133.45,133.42,7.49510807]
[1765076345635,8.24,133.44,133.43,21.02648009]
[1765076345938,8.24,133.44,133.43,16.308864]
[1765076346144,8.92,133.44,133.43,16.308864]
[1765076347142,8.92,133.44,133.43,21.02648009]
[1765076349167,8.92,133.44,133.43,16.308864]
[1765076349350,8.92,133.44,133.43,21.02648009]
[1765076354678,8.92,133.44,133.43,16.308864]
[1765076357182,8.92,133.44,133.43,21.02648009]
[1765076358378,8.92,133.44,133.43,16.308864]
[1765076364482,8.92,133.44,133.43,21.02648009]
[1765076365378,8.24,133.44,133.43,21.02648009]
[1765076365558,8.24,133.44,133.43,29.24104652]
[1765076366164,8.24,133.44,133.43,28.52104652]
[1765076366573,8.96,133.44,133.43,23.80343043]
[1765076366780,8.96,133.44,133.43,28.52104652]
[1765076366959,8.24,133.44,133.43,28.52104652]
[1765076367358,8.96,133.44,133.43,16.308864]
[1765076369406,8.96,133.44,133.42,28.52155374]
[1765076369582,0.72,133.43,133.42,28.52155374]
[1765076370892,0.72,133.43,133.42,23.80393765]
[1765076371188,0.72,133.43,133.42,28.52155374]
[1765076371387,0.72,133.43,133.38,0.72]
[1765076371574,0.72,133.43,133.4,4.71761609]
[1765076371778,0.72,133.43,133.4,12.21386498]
[1765076371977,0.72,133.43,133.4,28.52272898]
[1765076372386,0.72,133.43,133.4,23.80511289]
[1765076372571,0.72,133.43,133.4,28.52272898]
[1765076375788,0.72,133.43,133.41,4.71761609]
[1765076375992,8.96,133.44,133.42,4.71761609]
[1765076376391,0.72,133.43,133.4,16.308864]
[1765076376784,0.72,133.43,133.4,21.02648009]
[1765076378895,0.72,133.43,133.4,16.308864]
[1765076379781,12.93233288,133.43,133.4,16.308864]
[1765076380290,8.21515766,133.42,133.4,16.308864]
[1765076380492,8.24,133.41,133.4,16.308864]
[1765076380694,8.96,133.41,133.4,16.308864]
[1765076381691,8.96,133.41,133.38,12.21490063]
[1765076381874,8.24,133.41,133.4,16.308864]
[1765076382495,8.96,133.41,133.4,16.308864]
[1765076390601,21.17330606,133.41,133.36,0.69]
[1765076390813,0.67,133.4,133.37,4.71761609]
[1765076390980,0.67,133.4,133.36,5.40761609]
[1765076391599,0.67,133.4,133.36,12.90605285]
[1765076392794,8.16643311,133.4,133.36,12.90605285]
[1765076393102,0.67,133.39,133.36,12.90605285]
[1765076393293,8.24,133.38,133.36,12.90605285]
[1765076393497,8.24,133.38,133.36,4.71761609]
[1765076393815,0.67,133.37,133.35,12.21652624]
[1765076395996,0.67,133.37,133.35,12.90652624]
[1765076396197,8.91,133.38,133.35,12.90652624]
[1765076396507,8.91,133.38,133.35,11.21236627]
[1765076397207,0.67,133.37,133.35,11.21236627]
[1765076397726,8.91,133.38,133.36,3.02345612]
[1765076399208,34.48087439,133.38,133.32,9.80231829]
[1765076399514,34.48087439,133.38,133.32,0.67]
[1765076399515,3.02345612,133.36,133.32,0.67]
[1765076399685,11.28345612,133.35,133.32,0.67]
[1765076399885,7.49962501,133.34,133.32,0.67]
[1765076400314,7.49962501,133.34,133.31,0.67]
[1765076400315,8.21962501,133.34,133.31,0.67]
[1765076401392,7.49962501,133.34,133.31,0.67]
[1765076401723,11.24308113,133.34,133.31,0.67]
[1765076402083,0.72,133.33,133.3,0.67]
[1765076402307,8.26,133.32,133.3,16.978864]
[1765076402500,7.49962501,133.34,133.3,20.00232012]
[1765076402700,8.26,133.33,133.31,0.67]
[1765076404004,7.70231163,133.35,133.34,16.308864]
[1765076404189,8.26,133.37,133.34,19.33232012]
[1765076404513,8.26,133.37,133.35,3.69345612]
[1765076405117,7.49681385,133.39,133.36,3.69345612]
[1765076405304,8.26,133.38,133.36,3.69345612]
[1765076405623,8.26,133.38,133.37,0.67]
[1765076406296,8.26,133.38,133.37,3.69345612]
[1765076407700,8.26,133.38,133.37,0.67]
[1765076407892,8.26,133.38,133.37,3.69345612]
[1765076410417,8.26,133.38,133.35,16.308864]
[1765076410606,8.98,133.38,133.35,16.978864]
[1765076410917,8.26,133.38,133.36,3.69345612]
[1765076411614,8.26,133.38,133.37,0.67]
[1765076413298,8.26,133.38,133.37,3.69345612]
[1765076413703,8.26,133.38,133.37,0.67]
[1765076413903,8.26,133.38,133.37,3.69345612]
[1765076414895,8.26,133.38,133.37,0.67]
[1765076415241,8.26,133.38,133.36,0.67]
[1765076415599,8.26,133.38,133.36,3.69345612]
[1765076415801,8.26,133.38,133.36,0.67]
[1765076416024,0.72,133.37,133.35,19.33232012]
[1765076416240,0.72,133.37,133.33,3.69345612]
[1765076416530,0.72,133.37,133.33,0.67]
[1765076416730,0.72,133.37,133.32,11.1940638]
[1765076416938,0.72,133.37,133.33,16.308864]
[1765076417329,7.49850029,133.36,133.32,3.69345612]
[1765076417640,8.26,133.35,133.32,3.69345612]
[1765076417935,8.98,133.35,133.32,3.69345612]
[1765076420116,8.26,133.35,133.33,0.67]
[1765076421135,8.26,133.34,133.33,3.69345612]
[1765076423939,8.21850029,133.36,133.33,3.69345612]
[1765076424147,8.26,133.35,133.33,3.69345612]
[1765076424960,8.26,133.35,133.33,0.67]
[1765076425264,0.68,133.34,133.32,3.02345612]
[1765076425419,0.68,133.34,133.31,27.51349074]
[1765076425620,0.68,133.34,133.31,26.83349074]
[1765076425924,8.94,133.35,133.32,0.68]
[1765076426240,8.94,133.35,133.32,3.70345612]
[1765076427152,0.68,133.34,133.3,11.20515637]
[1765076427449,0.68,133.34,133.3,8.18170025]
[1765076427620,0.68,133.34,133.31,0.68]
[1765076427824,0.68,133.34,133.31,8.18118033]
[1765076428024,0.68,133.34,133.31,0.68]
[1765076432450,0.68,133.34,133.31,3.70345612]
[1765076432764,8.26,133.33,133.32,3.02345612]
[1765076432964,8.26,133.33,133.32,3.70345612]
[1765076433864,8.26,133.33,133.32,11.20420619]
[1765076438378,8.26,133.37,133.33,8.80994492]
[1765076438553,8.26,133.37,133.36,3.02345612]
[1765076439054,8.26,133.37,133.36,3.70345612]
[1765076439751,8.94,133.37,133.33,16.988864]
[1765076440078,0.68,133.36,133.33,20.01232012]
[1765076441144,0.68,133.36,133.33,27.51244056]
[1765076441866,0.68,133.36,133.34,3.02345612]
[1765076442071,16.43794313,133.37,133.34,3.70345612]
[1765076443168,15.75794313,133.37,133.34,3.02345612]
[1765076443357,0.68,133.36,133.34,3.02345612]
[1765076445264,0.68,133.36,133.33,3.02345612]
[1765076445657,0.68,133.36,133.34,3.02345612]
[1765076446171,0.68,133.36,133.33,3.02345612]
[1765076446172,8.17873504,133.36,133.33,3.02345612]
[1765076446571,0.68,133.35,133.33,3.02345612]
[1765076446781,7.49873504,133.36,133.33,3.02345612]
[1765076446952,8.17873504,133.36,133.33,3.70345612]
[1765076447152,8.17873504,133.36,133.34,3.02345612]
[1765076449966,15.75807432,133.37,133.34,3.02345612]
[1765076450313,16.43807432,133.37,133.34,3.70345612]
[1765076450982,16.43807432,133.37,133.35,3.02345612]
[1765076451276,8.26,133.36,133.35,3.02345612]
[1765076451461,8.19807432,133.37,133.35,3.02345612]
[1765076451660,8.26,133.36,133.35,3.02345612]
[1765076451986,8.26,133.36,133.35,3.73345612]
[1765076452363,8.26,133.36,133.35,3.02345612]
[1765076453592,8.26,133.36,133.35,3.73345612]
[1765076454392,8.26,133.36,133.35,3.02345612]
[1765076454884,8.26,133.36,133.35,3.73345612]
[1765076456484,8.26,133.36,133.35,3.02345612]
[1765076457466,8.26,133.36,133.35,3.73345612]